{"text_format":"1","workbook":"xlsx","n_sheets":3,"sheets":["Instrucciones","Reformulación Presupuesto Aa","Resumen Presupuesto"],"not_rendered":{"charts":0,"images":2,"macros":1,"external_links":0,"defined_names":9,"comments":1,"pivot_tables":0},"unopened":[],"bounds":{"document_bytes":16777216,"sheet_cells":100000,"rows_first":2000,"rows_last":500,"rows_between":2000,"halvings":0,"cell_chars":16384,"cell_head_chars":4096},"cells_cut":0,"cells_raw":0,"read":"whole","date_system":"1900"}

{"sheet":"Instrucciones","index":0,"n_rows":19,"n_cols":10,"rows_kept":19,"cut":false,"hidden":false,"merged":[[1,9,1,11],[2,2,3,17],[4,2,4,17],[17,1,17,17],[15,1,15,17],[13,1,13,17],[10,1,10,17],[11,1,11,17],[9,1,9,17],[7,2,7,17]]}
[]
[null,null,null,null,null,null,null,null,null,"Doc_basico3_presup_reformulado_Aa INSTRUCCIONES"]
[null,null,"SUBVENCIONES DEL AYUNTAMIENTO DE BARCELONA PARA EL FORTALECIMIENTO DE LA ECONOMÍA SOCIAL Y SOLIDARIA Y POR LA INTERCOOPERACIÓN EN LA ESTRATEGIA #ESSBCN2030 - FORTALECEMOS LA ESS 2025"]
[]
[null,null,"Aspectos relevantes relacionados con la reformulación"]
[]
[]
[null,null,"INSTRUCCIONES"]
[]
[null,"1. Cumplimentar sólo las celdas en blanco de la pestaña \"Reformulación Presupuesto\" con los datos económicos del proyecto:"]
[null,"1.1 Cumplimentar los cuadros DATOS BÁSICOS-PREVISIÓN DE GASTOS DEL PROYECTO SUBVENCIONABLE INICIAL, con los datos económicos de la propuesta inicial con subvención otorgada."]
[null,"1.2 Cumplimentar los cuadros DATOS BÁSICOS-PREVISIÓN DE GASTOS DEL PROYECTO REFORMULADO, con los datos económicos de la propuesta de reformulación."]
[]
[null,"2. Revisar y rellenar sólo las celdas en blanco de la pestaña \"Resumen Presupuesto\" con los datos económicos del proyecto."]
[]
[null,"3. Imprimir las hojas de las 2 pestañas (Reformulación presupuesto y Resumen Presupuesto). En formato pdf."]
[]
[null,"4. Si la solicitud se presentó por vía telemática, es necesario registrar la documentación telemáticamente dentro de la convocatoria específica como anexión de documentos adicionales y utilizar el número de trámite que el sistema de registro proporciona en el momento de la presentación de la solicitud de la subvención."]
[null,"Enlace para realizar el trámite."]

{"sheet":"Reformulación Presupuesto Aa","index":1,"n_rows":111,"n_cols":15,"rows_kept":111,"cut":false,"hidden":false,"merged":[[98,0,98,14],[99,0,99,14],[109,0,109,14],[110,0,110,14],[102,0,102,14],[103,0,103,14],[104,0,104,14],[105,0,105,14],[106,0,106,14],[107,0,107,14],[108,0,108,14],[100,0,100,14],[101,0,101,14],[95,0,95,14],[96,0,96,14],[97,0,97,14],[12,0,12,3],[12,6,12,9],[18,12,18,14],[16,1,16,3],[18,0,18,4],[16,7,16,9],[18,6,18,10],[14,7,14,9],[15,7,15,9],[13,1,13,3],[14,1,14,3],[15,1,15,3],[13,7,13,9],[16,10,16,12],[13,10,13,12],[1,1,1,10],[3,0,3,14],[6,1,6,9],[7,1,7,9],[10,1,10,9],[8,1,8,9],[9,1,9,9],[4,0,4,14]]}
[]
[null,"Reformulación presupuesto Modalidad Aa"]
[]
["Programa de subvenciones del Ayuntamiento de Barcelona para el fortalecimiento de la Economía Social y Solidaria y por la intercooperación en la Estrategia #ESSBCN2030 - FORTALECEMOS LA ESS 2025"]
["CUMPLIMENTAR SÓLO LAS CELDAS EN BLANCO"]
[]
["Nombre de la persona jurídica"]
["NIF de la persona jurídica"]
["Nombre de la persona física"]
["NIF de la persona física"]
["Nombre del proyecto subvencionable"]
[]
["DATOS BÁSICOS DEL PROYECTO INICIAL SOLICITADO \n(indicar los datos solicitados en la propuesta inicial)",null,null,null,null,null,"DATOS BÁSICOS PROYECTO REFORMULADO"]
["Importe total del proyecto subvencionable",null,null,null,null,null,"Importe total del proyecto REFORMULADO",null,null,null,{"$f":"IF(H14<B14*0.7,\"No se puede reformular más de un 30%.\",\"\")","v":""}]
["Importe imputable a la subvención municipal",null,null,null,null,null,"Importe imputable a la subvención OTORGADA\n(indicar el importe otorgado a la resolución)"]
["Importe de la aportación y/o cofinanciación de la organización",{"$f":"+B14-B15","v":0},null,null,null,null,"Importe de la aportación y/o cofinanciación de la organización",{"$f":"H14-H15","v":0}]
["% del importe solicitado respecto al total del proyecto subvencionable (máximo 80%*)",{"$f":"IF(B15>0,B15/B14,\"\")","v":""},null,null,"* La cuantía de la subvención otorgada no superará el 80% del gasto total del proyecto a subvencionar.",null,"% del importe solicitado respecto al total del proyecto subvencionable (máximo 80%*)\n(debe ser igual o inferior respecto al % de la solicitud inicial)",{"$f":"IF(H15>0,H15/H14,\"\")","v":""},null,null,{"$f":"IF(H17=\"\",\"\",IF(H17>0.8,\"La cuantia de la subvención otorgada no puede superar el 80% del gasto total del proyecto.\",IF(H17>B17,\"Debe ser igual o inferior al % de la propuesta inicial.\",\"\")))","v":""}]
[]
["PREVISIÓN DE GASTOS DEL PROYECTO SUBVENCIONABLE INICIAL",null,null,null,null,null,"PREVISIÓN DE GASTOS DEL PROYECTO REFORMULADO",null,null,null,null,null,"DIFERENCIA REFORMULACIÓN Y PROYECTO INICIAL"]
[]
["Partidas","Importe imputable a la subvención municipal","% subvención / total","Importe de la aportación y/o atribuciones de la organización","Importe total del proyecto",null,"Partidas","Importe imputable a la subvención municipal","% subvención / total","Importe de la aportación y/o atribuciones de la organización","Importe total del proyecto",null,"Importe imputable a la subvención municipal","Importe de la aportación y/o atribuciones de la organización","Importe total del proyecto"]
["D1. Nóminas y seguridad social (régimen general o socios/as cooperativistas en régimen de autónomos) del personal propio vinculado al proyecto subvencionable",{"$f":"SUM(B23:B27)","v":0},{"$f":"IF(B22>0,B22/$B$15,)","v":0},{"$f":"SUM(D23:D27)","v":0},{"$f":"B22+D22","v":0},null,"D1. Nóminas y seguridad social (régimen general o socios/as cooperativistas en régimen de autónomos) del personal propio vinculado al proyecto subvencionable",{"$f":"SUM(H23:H27)","v":0},{"$f":"IF(H22>0,H22/$H$15,)","v":0},{"$f":"SUM(J23:J27)","v":0},{"$f":"+H22+J22","v":0},null,{"$f":"B22-H22","v":0},{"$f":"D22-J22","v":0},0]
[null,null,null,null,0,null,null,null,null,null,0,null,{"$f":"B23-H23","v":0},{"$f":"D23-J23","v":0},{"$f":"E23-K23","v":0}]
[null,null,null,null,0,null,null,null,null,null,0,null,0,0,0]
[null,null,null,null,0,null,null,null,null,null,0,null,0,0,0]
[null,null,null,null,0,null,null,null,null,null,0,null,0,0,0]
[null,null,null,null,0,null,null,null,null,null,0,null,0,0,0]
["D2. Rendimientos anuales netos del empresario/a individual (ver 13.2 bases)",{"$f":"SUM(B29:B33)","v":0},{"$f":"IF(B28>0,B28/$B$15,)","v":0},{"$f":"SUM(D29:D33)","v":0},0,null,"D2. Rendimientos anuales netos del empresario/a individual (ver 13.2 bases)",{"$f":"SUM(H29:H33)","v":0},{"$f":"IF(H28>0,H28/$H$15,)","v":0},{"$f":"SUM(J29:J33)","v":0},0,null,{"$f":"B28-H28","v":0},{"$f":"D28-J28","v":0},0]
[null,null,null,null,0,null,null,null,null,null,0,null,{"$f":"B29-H29","v":0},0,0]
[null,null,null,null,0,null,null,null,null,null,0,null,0,0,0]
[null,null,null,null,0,null,null,null,null,null,0,null,0,0,0]
[null,null,null,null,0,null,null,null,null,null,0,null,0,0,0]
[null,null,null,null,0,null,null,null,null,null,0,null,0,0,0]
["TOTAL DE GASTOS DEL PERSONAL (D1+D2 Máximo 40% del importe imputable a la subvención municipal)",{"$f":"B22+B28","v":0},{"$f":"IF(B34>0,B34/$B$15,)","v":0},{"$f":"D22+D28","v":0},{"$f":"E22+E28","v":0},null,"TOTAL DE GASTOS DEL PERSONAL (D1+D2 Máximo 40% del importe imputable a la subvención municipal)",{"$f":"H22+H28","v":0},{"$f":"IF(H34>0,H34/$H$15,)","v":0},{"$f":"J22+J28","v":0},{"$f":"K22+K28","v":0},null,{"$f":"B34-H34","v":0},{"$f":"D34-J34","v":0},0]
["D3. Trabajos realizados por profesionales y empresas externas directamente vinculadas al proyecto, gastos de licencias y tasas relacionadas con la constitución, inicio y desarrollo de la actividad",{"$f":"SUM(B36:B40)","v":0},{"$f":"IF(B35>0,B35/$B$15,)","v":0},{"$f":"SUM(D36:D40)","v":0},{"$f":"B35+D35","v":0},null,"D3. Trabajos realizados por profesionales y empresas externas directamente vinculadas al proyecto, gastos de licencias y tasas relacionadas con la constitución, inicio y desarrollo de la actividad",{"$f":"SUM(H36:H40)","v":0},{"$f":"IF(H35>0,H35/$H$15,)","v":0},{"$f":"SUM(J36:J40)","v":0},{"$f":"+H35+J35","v":0},null,0,{"$f":"D35-J35","v":0},0]
[null,null,null,null,{"$f":"B36+D36","v":0},null,null,null,null,null,0,null,0,0,0]
[null,null,null,null,0,null,null,null,null,null,0,null,0,0,0]
[null,null,null,null,0,null,null,null,null,null,0,null,0,0,0]
[null,null,null,null,0,null,null,null,null,null,0,null,0,0,0]
[null,null,null,null,0,null,null,null,null,null,0,null,0,0,0]
["TOTAL DE OTROS GASTOS DIRECTOS",{"$f":"B35","v":0},{"$f":"IF(B41>0,B41/$B$15,)","v":0},{"$f":"D35","v":0},{"$f":"E35","v":0},null,"TOTAL DE OTROS GASTOS DIRECTOS",{"$f":"H35","v":0},{"$f":"IF(H41>0,H41/$H$15,)","v":0},{"$f":"J35","v":0},{"$f":"K35","v":0},null,{"$f":"B41-H41","v":0},{"$f":"D41-J41","v":0},0]
["TOTAL GASTOS DIRECTOS (aquellos que se identifican directamente con el proyecto subvencionable)",{"$f":"SUM(B34,B41)","v":0},{"$f":"IF(B42>0,B42/$B$15,)","v":0},{"$f":"SUM(D34,D41)","v":0},{"$f":"E34+E41","v":0},null,"TOTAL GASTOS DIRECTOS (aquellos que se identifican directamente con el proyecto subvencionable)",{"$f":"SUM(H34,H41)","v":0},{"$f":"IF(H42>0,H42/$H$15,)","v":0},{"$f":"SUM(J34,J41)","v":0},{"$f":"K34+K41","v":0},null,0,{"$f":"D42-J42","v":0},0]
["I1. Personal de apoyo al proyecto (nóminas y seguridad social)",{"$f":"SUM(B44:B47)","v":0},null,{"$f":"SUM(D44:D47)","v":0},{"$f":"+B43+D43","v":0},null,"I1. Personal de apoyo al proyecto (nóminas y seguridad social)",{"$f":"SUM(H44:H47)","v":0},null,{"$f":"SUM(J44:J47)","v":0},{"$f":"+H43+J43","v":0},null,0,{"$f":"D43-J43","v":0},0]
[null,null,null,null,0,null,null,null,null,null,0,null,0,0,0]
[null,null,null,null,0,null,null,null,null,null,0,null,0,0,0]
[null,null,null,null,0,null,null,null,null,null,0,null,0,0,0]
[null,null,null,null,0,null,null,null,null,null,0,null,0,0,0]
["I2. Seguros",{"$f":"SUM(B49:B52)","v":0},null,{"$f":"SUM(D49:D52)","v":0},0,null,"I2. Seguros",{"$f":"SUM(H49:H52)","v":0},null,{"$f":"SUM(J49:J52)","v":0},0,null,{"$f":"B48-H48","v":0},{"$f":"D48-J48","v":0},0]
[null,null,null,null,0,null,null,null,null,null,0,null,{"$f":"B49-H49","v":0},0,0]
[null,null,null,null,0,null,null,null,null,null,0,null,0,0,0]
[null,null,null,null,0,null,null,null,null,null,0,null,0,0,0]
[null,null,null,null,0,null,null,null,null,null,0,null,0,0,0]
["I3. Amortización",{"$f":"SUM(B54:B57)","v":0},null,{"$f":"SUM(D54:D57)","v":0},0,null,"I3. Amortización",{"$f":"SUM(H54:H57)","v":0},null,{"$f":"SUM(J54:J57)","v":0},0,null,{"$f":"B53-H53","v":0},{"$f":"D53-J53","v":0},0]
[null,null,null,null,0,null,null,null,null,null,0,null,{"$f":"B54-H54","v":0},0,0]
[null,null,null,null,0,null,null,null,null,null,0,null,0,0,0]
[null,null,null,null,0,null,null,null,null,null,0,null,0,0,0]
[null,null,null,null,0,null,null,null,null,null,0,null,0,0,0]
["I4. Alquiler de bienes inmuebles",{"$f":"SUM(B59:B62)","v":0},null,{"$f":"SUM(D59:D62)","v":0},0,null,"I4. Alquiler de bienes inmuebles",{"$f":"SUM(H59:H62)","v":0},null,{"$f":"SUM(J59:J62)","v":0},0,null,{"$f":"B58-H58","v":0},{"$f":"D58-J58","v":0},0]
[null,null,null,null,0,null,null,null,null,null,0,null,{"$f":"B59-H59","v":0},0,0]
[null,null,null,null,0,null,null,null,null,null,0,null,0,0,0]
[null,null,null,null,0,null,null,null,null,null,0,null,0,0,0]
[null,null,null,null,0,null,null,null,null,null,0,null,0,0,0]
["I5. Adquisición de materiales y bienes consumibles parcialmente imputables al proyecto",{"$f":"SUM(B64:B67)","v":0},null,{"$f":"SUM(D64:D67)","v":0},0,null,"I5. Adquisición de materiales y bienes consumibles parcialmente imputables al proyecto",{"$f":"SUM(H64:H67)","v":0},null,{"$f":"SUM(J64:J67)","v":0},0,null,{"$f":"B63-H63","v":0},{"$f":"D63-J63","v":0},0]
[null,null,null,null,0,null,null,null,null,null,0,null,{"$f":"B64-H64","v":0},0,0]
[null,null,null,null,0,null,null,null,null,null,0,null,0,0,0]
[null,null,null,null,0,null,null,null,null,null,0,null,0,0,0]
[null,null,null,null,0,null,null,null,null,null,0,null,0,0,0]
["I6. Mantenimiento de edificios y/o instalaciones",{"$f":"SUM(B69:B72)","v":0},null,{"$f":"SUM(D69:D72)","v":0},0,null,"I6. Mantenimiento de edificios y/o instalaciones",{"$f":"SUM(H69:H72)","v":0},null,{"$f":"SUM(J69:J72)","v":0},0,null,{"$f":"B68-H68","v":0},{"$f":"D68-J68","v":0},0]
[null,null,null,null,0,null,null,null,null,null,0,null,{"$f":"B69-H69","v":0},0,0]
[null,null,null,null,0,null,null,null,null,null,0,null,0,0,0]
[null,null,null,null,0,null,null,null,null,null,0,null,0,0,0]
[null,null,null,null,0,null,null,null,null,null,0,null,0,0,0]
["I7. Comunicaciones (teléfono, correos, conexión a internet)",{"$f":"SUM(B74:B77)","v":0},null,{"$f":"SUM(D74:D77)","v":0},0,null,"I7. Comunicaciones (teléfono, correos, conexión a internet)",{"$f":"SUM(H74:H77)","v":0},null,{"$f":"SUM(J74:J77)","v":0},0,null,{"$f":"B73-H73","v":0},{"$f":"D73-J73","v":0},0]
[null,null,null,null,0,null,null,null,null,null,0,null,{"$f":"B74-H74","v":0},0,0]
[null,null,null,null,0,null,null,null,null,null,0,null,0,0,0]
[null,null,null,null,0,null,null,null,null,null,0,null,0,0,0]
[null,null,null,null,0,null,null,null,null,null,0,null,0,0,0]
["I8. Gastos financieros",{"$f":"SUM(B79:B82)","v":0},null,{"$f":"SUM(D79:D82)","v":0},0,null,"I8. Gastos financieros",{"$f":"SUM(H79:H82)","v":0},null,{"$f":"SUM(J79:J82)","v":0},0,null,{"$f":"B78-H78","v":0},{"$f":"D78-J78","v":0},0]
[null,null,null,null,0,null,null,null,null,null,0,null,{"$f":"B79-H79","v":0},0,0]
[null,null,null,null,0,null,null,null,null,null,0,null,0,0,0]
[null,null,null,null,0,null,null,null,null,null,0,null,0,0,0]
[null,null,null,null,0,null,null,null,null,null,0,null,0,0,0]
["I9. Suministros",{"$f":"SUM(B84:B87)","v":0},null,{"$f":"SUM(D84:D87)","v":0},0,null,"I9. Suministros",{"$f":"SUM(H84:H87)","v":0},null,{"$f":"SUM(J84:J87)","v":0},0,null,{"$f":"B83-H83","v":0},{"$f":"D83-J83","v":0},0]
[null,null,null,null,0,null,null,null,null,null,0,null,{"$f":"B84-H84","v":0},0,0]
[null,null,null,null,0,null,null,null,null,null,0,null,0,0,0]
[null,null,null,null,0,null,null,null,null,null,0,null,0,0,0]
[null,null,null,null,0,null,null,null,null,null,0,null,0,0,0]
["I10. Trabajo realizado por otras empresas, parcialmente imputables al proyecto (limpieza, seguridad...)",{"$f":"SUM(B89:B92)","v":0},null,{"$f":"SUM(D89:D92)","v":0},0,null,"I10. Trabajo realizado por otras empresas, parcialmente imputables al proyecto (limpieza, seguridad...)",{"$f":"SUM(H89:H92)","v":0},null,{"$f":"SUM(J89:J92)","v":0},0,null,{"$f":"B88-H88","v":0},{"$f":"D88-J88","v":0},0]
[null,null,null,null,0,null,null,null,null,null,0,null,{"$f":"B89-H89","v":0},0,0]
[null,null,null,null,0,null,null,null,null,null,0,null,0,0,0]
[null,null,null,null,0,null,null,null,null,null,0,null,0,0,0]
[null,null,null,null,0,null,null,null,null,null,0,null,0,0,0]
["TOTAL GASTOS INDIRECTOS (se podrán asignar al proyecto subvencionable usando un porcentaje de asignación) - Máximo 10% del importe imputable a la subvención municipal",{"$f":"SUM(B43,B48,B53,B58,B63,B68,B73,B78,B83,B88)","v":0},{"$f":"IF(B93>0,B93/$B$15,)","v":0},{"$f":"SUM(D43,D48,D53,D58,D63,D68,D73,D78,D83,D88)","v":0},{"$f":"E43+E48+E53+E58+E63+E68+E73+E78+E83+E88","v":0},null,"TOTAL GASTOS INDIRECTOS (se podrán asignar al proyecto subvencionable usando un porcentaje de asignación) - Máximo 10% del importe imputable a la subvención municipal",{"$f":"SUM(H43,H48,H53,H58,H63,H68,H73,H78,H83,H88)","v":0},{"$f":"IF(H93>0,H93/$H$15,)","v":0},{"$f":"SUM(J43,J48,J53,J58,J63,J68,J73,J78,J83,J88)","v":0},{"$f":"K43+K48+K53+K58+K63+K68+K73+K78+K83+K88","v":0},{"$f":"+IF(H93>H15*0.1,\"ALERTA: Màxim 10% import imputable a la subvenció municipal\", \" \")","v":" "},{"$f":"B93-H93","v":0},{"$f":"D93-J93","v":0},0]
["TOTAL DE GASTOS PREVISTOS",{"$f":"SUM(B42+B93)","v":0},{"$f":"IF(B94>0,B94/$B$15,)","v":0},{"$f":"SUM(D42+D93)","v":0},{"$f":"SUM(E42+E93)","v":0},null,"TOTAL DE GASTOS PREVISTOS",{"$f":"SUM(H42+H93)","v":0},{"$f":"IF(H94>0,H94/$H$15,)","v":0},{"$f":"SUM(J42+J93)","v":0},0,null,0,{"$f":"D94-J94","v":0},0]
[null,{"$f":"IF(B94>B15,\"La suma del detalle de gastos no puede ser superior al importe total de subvención municipal indicado en el recuadro.\",(IF(B94<B15,\"La suma del detalle de gastos no puede ser inferior al importe total de subvención municipal indicado en el recuadro.\",\"\")))","v":""},null,{"$f":"IF(D94>B16,\"La suma del detalle de gastos no puede ser superior al importe total de la aportación/cofinanciación indicado en el recuadro.\",(IF(D94<B16,\"La suma del detalle de gastos no puede ser inferior al importe total de la aportación/cofinanciación indicado en el recuadro.\",\"\")))","v":""},{"$f":"IF(E94>B14,\"La suma del detalle de gastos no puede ser superior al importe total del proyecto indicado en el recuadro.\",(IF(E94<B14,\"La suma del detalle de gastos no puede ser inferior al importe total del proyecto indicado en el recuadro.\",\"\")))","v":""},null,null,{"$f":"IF(H94>H15,\"La suma del detalle de gastos no puede ser superior al importe total de subvención municipal indicado en el recuadro.\",(IF(H94<H15,\"La suma del detalle de gastos no puede ser inferior al importe total de subvención municipal indicado en el recuadro.\",\"\")))","v":""},null,{"$f":"IF(J94>H16,\"La suma del detalle de gastos no puede ser superior al importe total de la aportación/cofinanciación indicado en el recuadro.\",(IF(J94<H16,\"La suma del detalle de gastos no puede ser inferior al importe total de la aportación/cofinanciación indicado en el recuadro.\",\"\")))","v":""},{"$f":"IF(K94>H14,\"La suma del detalle de gastos no puede ser superior al importe total del proyecto indicado en el recuadro.\",(IF(K94<H14,\"La suma del detalle de gastos no puede ser inferior al importe total del proyecto indicado en el recuadro.\",\"\")))","v":""}]
["Modalidad Aa: Creación de nuevas cooperativas y transformación, de otras formas jurídicas pre-existentes, en cooperativas"]
["Se establece como obligación de la subvención la constitución de la cooperativa, estar en disposición del NIF provisional y haber presentado la solicitud de inscripción en el registro correspondiente antes de la finalización del proyecto subvencionable. Se reconocerá como válida la solicitud, en el caso de que el registro no haya respondido a la petición durante el periodo de ejecución. Igualmente en los proyectos de transformación para convertirse en cooperativa, habrá que acreditar, como mínimo, la solicitud de inscripción presentada en el registro correspondiente en el momento de la justificación."]
["1. La cuantía de la subvención otorgada no superará el 80% del gasto total del proyecto a subvencionar."]
["2. El importe máximo de subvención para la modalidad Aa es 6.000€."]
["3. En el caso de que la solicitud presentada sobrepase el importe máximo, se considerará como importe solicitado el máximo de lo establecido en la convocatoria."]
["4. Se limita con un máximo del 40% el importe de la subvención para gastos de personal propio que participa de forma directa y debidamente al proyecto."]
["5. Sólo con carácter excepcional, los/as empresarios/as individuales que no tengan personas trabajadoras en plantilla podrán acreditar sus trabajos mediante una declaración responsable acompañada de las declaraciones IRPF (modelo 130) del ejercicio corriente. El precio/hora imputado al proyecto subvencionado no podrá superar la cantidad resultante de dividir los rendimientos anuales netos del empresario/a individual por 1800."]
["6. En ningún caso se considerarán gastos subvencionables:\n> Los impuestos indirectos cuando sean susceptibles de recuperación o compensación.\n> Los gastos de inversión, incluidas las adquisiciones de bienes muebles.\n> Los gastos realizados con fecha anterior al inicio del proyecto y fecha posterior a la finalización del proyecto.\n> Otros gastos que se indiquen en la convocatoria."]
["7. Son imputables en esta modalidad los gastos indirectos, detallados en el apartado 13.3. de las bases reguladoras; con un máximo del 10% del importe de la subvención."]
["8. La retribución de las personas contratadas en el marco del proyecto subvencionado no puede ser inferior al Salario Mínimo Interprofesional (SMI), ni a la estipulada en el correspondiente convenio o marco normativo de referencia (punto 7 de las bases 2025: requisitos de los proyectos)."]
["9. Los materiales producidos de difusión, estudios, informes o materiales didácticos utilizados, etc. en el caso de tratarse de gasto elegible de la subvención, deberán tener licencia Creative Commons -Compartir Igual- (share a like) y no podrá tener la condición –Sin Obras Derivadas- (no derivate Works)."]
["10. Los proyectos subvencionados deben fomentar actividades de interés público o social, las cuales deben ser gratuitas para las personas participantes o en ningún caso el precio debe suponer un obstáculo para su participación, buscando otras formas de acceso para personas con dificultades económicas. En el caso de que haya algún tipo de lucro, tendrá que revertir en las propias actividades subvencionadas."]
["11. El Ayuntamiento de Barcelona y sus entidades municipales en ningún caso subvencionarán el mismo proyecto, ejecutado durante el mismo periodo, por ningún otro procedimiento de concesión que no sea el regulado por las bases reguladoras."]
["12. El/la beneficiario/a no podrá alterar en ningún caso el destino de las subvenciones concedidas."]
["13. No se pueden imputar en ningún caso gastos de inversión, correspondientes a partidas del inmovilizado, con el dinero de la subvención otorgada en esta convocatoria específica. Sí se pueden imputar a la parte de contribución, siempre que sean gastos dentro del periodo ejecutivo del proyecto subvencionado y acreditables tal como se describe en las bases reguladoras vigentes."]
["14. En el caso de presentar tickets, su importe no podrá superar el 10% de la subvención e irán acompañados de una declaración responsable del representante legal de la persona jurídica o de la agrupación de personas jurídicas que indicará en qué concepto se imputa este gasto."]

{"sheet":"Resumen Presupuesto","index":2,"n_rows":27,"n_cols":12,"rows_kept":27,"cut":false,"hidden":false,"merged":[[26,7,26,10],[12,7,13,7],[12,8,13,8],[12,9,13,9],[12,10,13,10],[21,7,21,8],[9,7,10,7],[9,8,10,8],[9,9,10,9],[9,10,10,10],[13,0,14,1],[10,4,11,4],[13,2,14,3],[13,4,14,5],[10,0,11,0],[10,1,11,1],[10,2,11,2],[10,3,11,3],[10,5,11,5],[1,2,2,8],[3,0,3,9],[5,0,5,1],[6,0,7,1],[6,2,7,3],[6,4,7,5],[6,9,7,10],[6,7,7,8]]}
[]
[null,null,"Resumen presupuesto Aa"]
[]
["Subvenciones del Ayuntamiento de Barcelona para el fortalecimiento de la Economía Social y Solidaria y por la intercooperación en la Estrategia #ESSBCN2030 - FORTALECEMOS LA ESS 2025",null,null,null,null,null,null,null,null,null,"MODALIDAD Aa"]
[]
["GASTOS PREVISTOS",null,"SOLICITUD INICIAL","REFORMULACIÓN","SOLICITUD INICIAL","REFORMULACIÓN",null,"INGRESSOS PREVISTOS",null,"SOLICITUD INICIAL","REFORMULACIÓN"]
["Gastos directos \n(aquellas que se identifican directamente con el proyecto)",null,"Costo total",null,"Subvención",null,null,"Ingressos previstos",null,"Previsión ingreso total"]
[]
["Aa","D1. Nóminas y seguridad social (régimen general o socios/as cooperativistas en régimen de autónomos) del personal propio vinculado al proyecto subvencionable",{"$f":"+'Reformulación Presupuesto Aa'!E22","v":0},{"$f":"+'Reformulación Presupuesto Aa'!K22","v":0},{"$f":"+'Reformulación Presupuesto Aa'!B22","v":0},{"$f":"+'Reformulación Presupuesto Aa'!H22","v":0},{"$f":"+IF(D9<0,\"No s'admeten valors negatius\",\"\")","v":""},"A.","Subvención municipal (importe solicitado a la instancia/otorgado)",{"$f":"'Reformulación Presupuesto Aa'!B15","v":0},{"$f":"'Reformulación Presupuesto Aa'!H15","v":0}]
[null,"D2. Rendimientos anuales netos del empresario/a individual (ver 13.2 bases)",{"$f":"+'Reformulación Presupuesto Aa'!E28","v":0},{"$f":"+'Reformulación Presupuesto Aa'!K28","v":0},{"$f":"+'Reformulación Presupuesto Aa'!B28","v":0},{"$f":"+'Reformulación Presupuesto Aa'!H28","v":0},null,"B.","Subvenciones de otras administraciones"]
[null,"D3. Trabajos realizados por profesionales y empresas externas directamente vinculadas al proyecto, gastos de licencias y tasas relacionadas con la constitución, inicio y desarrollo de la actividad",{"$f":"+'Reformulación Presupuesto Aa'!E35","v":0},{"$f":"+'Reformulación Presupuesto Aa'!K35","v":0},{"$f":"+'Reformulación Presupuesto Aa'!B35","v":0},{"$f":"+'Reformulación Presupuesto Aa'!H35","v":0},null,null,null,null,null,{"$f":"+IF(K11<0,\"No s'admeten valors negatius\",\"\")","v":""}]
[null,null,null,null,null,null,{"$f":"+IF(D11<0,\"No s'admeten valors negatius\",\"\")","v":""},"C.","Subvenciones de entidades privadas",null,null,""]
[null,"Total Gastos Directos",{"$f":"SUM(C9:C12)","v":0},{"$f":"SUM(D9:D12)","v":0},{"$f":"SUM(E9:E12)","v":0},{"$f":"SUM(F9:F12)","v":0},null,"D.","Recursos propios de la organización aplicados al proyecto"]
["Gastos indirectos (máximo 10% subvención)",null,"Indirectos inicial total",null,"Indirectos inicial subvención",null,{"$f":"+IF(D12<0,\"No s'admeten valors negatius\",\"\")","v":""}]
[null,null,null,null,null,null,{"$f":"+IF(D13<0,\"No s'admeten valors negatius\",\"\")","v":""},"E.","Taquillaje"]
[null,"Total Gastos Indirectos",{"$f":"'Reformulación Presupuesto Aa'!E93","v":0},{"$f":"'Reformulación Presupuesto Aa'!K93","v":0},{"$f":"'Reformulación Presupuesto Aa'!B93","v":0},{"$f":"'Reformulación Presupuesto Aa'!H93","v":0},null,"F.","Cuotas de inscripción"]
[null,"Total Gastos",{"$f":"+C13+C16","v":0},0,{"$f":"+E13+E16","v":0},0,null,"G.","Venta de Productos"]
[null,null,null,null,null,null,null,"H","Publicidad y/o Esponsorización"]
[null,null,null,null,null,null,null,"I.","Otros ingresos"]
[null,null,null,null,null,null,null,null,"Total Ingresos",{"$f":"SUM(J9:J19)","v":0},0]
[]
[null,null,null,null,null,null,null,"Ingresos menos gastos",null,{"$f":"+J20-C17","v":0},{"$f":"+K20-D17","v":0}]
[]
[null,null,null,null,null,null,null,null,null,"% subvencionado inicialmente",{"$f":"IF(J9>0,J9/C17,\"\")","v":""}]
[]
[null,null,null,null,null,null,null,null,null,"% subvencionado después de reformular",{"$f":"IF(K9>9,K9/D17,\"\")","v":""},"*"]
[null,null,null,null,null,null,null,"*Este porcentaje debe ser igual o menor al porcentaje subvencionado inicialmente."]